bitfinex-derivatives/quotes_SOLF0:USTF0_20250321
["timestamp","ask_amount","ask_price","bid_price","bid_amount"]
[1742557086875,7.9308,126.15,126.12,273.97094908]
[1742557087264,7.9316,126.14,126.12,273.97094908]
[1742557087578,7.9316,126.14,126.12,261.54]
[1742557088074,7.9316,126.14,126.12,261.57247623]
[1742557088468,7.9316,126.14,126.12,0.03247623]
[1742557089076,7.9326,126.13,126.1,12.43094908]
[1742557089272,28.4,126.14,126.1,12.43094908]
[1742557089978,28.4,126.14,126.11,7.9329]
[1742557090377,28.45076912,126.14,126.1,12.43094908]
[1742557090579,28.45076912,126.14,126.12,7.9327]
[1742557093681,40.8817182,126.14,126.1,12.43094908]
[1742557093878,28.45076912,126.14,126.1,12.43094908]
[1742557094281,36.38256912,126.14,126.11,7.9329]
[1742557094474,28.45076912,126.14,126.1,12.43094908]
[1742557095381,28.45076912,126.14,126.12,7.9326]
[1742557096081,0.05076912,126.14,126.13,7.9321]
[1742557096978,0.05076912,126.14,126.12,20.36334908]
[1742557097179,7.98256912,126.14,126.12,12.43094908]
[1742557097578,0.05076912,126.14,126.12,12.43094908]
[1742557097782,7.9327,126.12,126.1,40.83094908]
[1742557097983,7.9327,126.12,126.1,12.43094908]
[1742557098181,7.9327,126.12,126.1,20.36474908]
[1742557098787,28.45076912,126.14,126.1,12.43094908]
[1742557098985,28.45076912,126.14,126.12,12.43094908]
[1742557099188,0.05076912,126.14,126.12,12.43094908]
[1742557099487,0.05076912,126.14,126.12,20.36324908]
[1742557099989,7.98226912,126.14,126.12,20.36324908]
[1742557100188,0.05076912,126.14,126.12,20.36324908]
[1742557100887,0.05076912,126.14,126.13,7.9321]
[1742557103795,7.9282,126.2,126.13,261.68]
[1742557103990,6.2956,126.21,126.18,12.43094908]
[1742557104197,4.2086,126.21,126.18,12.43094908]
[1742557104495,12.1359,126.21,126.19,7.9281]
[1742557104991,12.19453674,126.21,126.19,7.97886912]
[1742557106301,2.09003674,126.21,126.19,7.97886912]
[1742557106493,0.05863674,126.21,126.2,7.9277]
[1742557106696,0.05863674,126.21,126.19,0.05076912]
[1742557106893,7.98613674,126.21,126.19,0.05076912]
[1742557107400,7.9277,126.2,126.19,0.05076912]
[1742557107597,40.88958582,126.21,126.16,12.43094908]
[1742557107897,7.9296,126.17,126.16,12.43094908]
[1742557108397,7.9287,126.19,126.16,20.36064908]
[1742557108601,4.16,126.2,126.16,12.43094908]
[1742557108806,0.0529716,126.19,126.16,12.43094908]
[1742557109096,0.0529716,126.19,126.17,7.9292]
[1742557109902,7.9813716,126.19,126.17,7.9292]
[1742557112900,0.0529716,126.19,126.18,12.43094908]
[1742557113504,0.0529716,126.19,126.18,20.35984908]
[1742557114702,0.0529716,126.19,126.18,48.75984908]
[1742557115104,2.2003,126.23,126.18,40.83094908]
[1742557115407,2.2003,126.23,126.21,12.43094908]
[1742557115801,7.928,126.2,126.18,12.43094908]
[1742557116304,7.98091862,126.2,126.18,12.48356697]
[1742557116505,7.9283,126.19,126.18,0.05261789]
[1742557123607,0.05291862,126.2,126.13,263.7345]
[1742557123608,40.8838677,126.2,126.15,12.43094908]
[1742557123912,2.113,126.18,126.15,12.43094908]
[1742557124812,2.17061438,126.18,126.15,12.43094908]
[1742557129911,7.9302,126.16,126.15,12.43094908]
[1742557132918,7.9298,126.17,126.15,12.43094908]
[1742557133513,2.17061438,126.18,126.15,12.43094908]
[1742557133713,0.05761438,126.18,126.15,12.43094908]
[1742557134315,7.9298,126.17,126.15,20.36154908]
[1742557136222,7.98681438,126.18,126.16,7.9302]
[1742557136518,0.05761438,126.18,126.17,12.43094908]
[1742557137512,7.98651438,126.18,126.17,12.43094908]
[1742557138023,7.9298,126.17,126.15,20.36144908]
[1742557138415,0.05761438,126.18,126.15,12.43094908]
[1742557138615,7.9302,126.16,126.15,12.43094908]
[1742557140119,7.9299,126.17,126.15,12.43094908]
[1742557141109,7.9299,126.17,126.15,20.36174908]
[1742557142925,0.05761438,126.18,126.15,12.43094908]
[1742557145318,0.05761438,126.18,126.13,40.83094908]
[1742557145527,28.45761438,126.18,126.13,40.83094908]
[1742557145726,12.43094908,126.16,126.11,261.62]
[1742557145925,2.1609,126.15,126.11,261.62]
[1742557146225,30.61370678,126.15,126.11,261.62]
[1742557147127,30.61370678,126.15,126.12,12.43094908]
[1742557147325,0.05280678,126.15,126.12,12.43094908]
[1742557148530,7.9318,126.14,126.12,20.36334908]
[1742557149126,7.9321,126.13,126.12,12.43094908]
[1742557149425,0.05280678,126.15,126.12,12.43094908]
[1742557149628,7.9317,126.14,126.12,12.43094908]
[1742557149927,0.05280678,126.15,126.12,12.43094908]
[1742557150328,7.9321,126.13,126.12,12.43094908]
[1742557150530,28.45280678,126.15,126.11,261.62]
[1742557151423,7.9327,126.12,126.11,261.62]
[1742557154631,7.9327,126.12,126.1,12.43094908]
[1742557154632,7.9333,126.11,126.1,12.43094908]
[1742557154832,28.4,126.11,126.08,12.43094908]
[1742557155023,28.4,126.11,126.06,274.09094908]
[1742557155433,7.9353,126.08,126.06,282.02714908]
[1742557155825,7.9870847,126.08,126.06,282.02714908]
[1742557156226,0.0517847,126.08,126.06,282.02714908]
[1742557156726,0.0517847,126.08,126.06,274.09094908]
[1742557158134,7.9871847,126.08,126.06,274.09094908]
[1742557159132,0.0517847,126.08,126.06,274.09094908]
[1742557159340,12.48273378,126.08,126.04,56.55632552]
[1742557159651,12.48273378,126.08,126.04,44.12537644]
[1742557159652,28.4,126.07,126.04,44.12537644]
[1742557159825,7.9369,126.06,126.04,44.12537644]
[1742557160829,38.3356,126.07,126.04,52.06307644]
[1742557161031,30.3994,126.07,126.04,56.55632552]
[1742557161233,0.0517847,126.08,126.06,12.43094908]
[1742557161438,0.0517847,126.08,126.07,7.9359]
[1742557177937,28.4,126.12,126.11,7.9333]
[1742557178244,7.9327,126.13,126.11,7.9333]
[1742557179145,7.98734847,126.13,126.11,7.98503332]
[1742557179545,0.05464847,126.13,126.12,7.9327]
[1742557179947,0.05464847,126.13,126.11,0.05173332]
[1742557180147,7.98694847,126.13,126.11,7.98483332]
[1742557180535,7.98694847,126.13,126.11,0.05173332]
[1742557181846,7.98694847,126.13,126.11,7.98493332]
[1742557182051,7.9327,126.12,126.11,0.05173332]
[1742557182545,36.3327,126.12,126.11,0.05173332]
[1742557186756,7.9327,126.12,126.11,0.05173332]
[1742557191055,0.05464847,126.13,126.11,20.4156824]
[1742557191457,7.98684847,126.13,126.11,20.4156824]
[1742557191659,7.98684847,126.13,126.11,12.4826824]
[1742557194054,7.98684847,126.13,126.11,0.05173332]
[1742557195053,7.9327,126.12,126.11,0.05173332]
[1742557196962,7.98704847,126.13,126.11,0.05173332]
[1742557197555,7.98704847,126.13,126.11,7.98483332]
[1742557200663,0.05464847,126.13,126.12,7.9327]
[1742557201263,7.98704847,126.13,126.11,20.4156824]
[1742557201464,7.98704847,126.13,126.11,0.05173332]
[1742557201465,0.05464847,126.13,126.11,0.05173332]
[1742557201863,48.76364908,126.12,126.11,0.05173332]
[1742557203165,36.3327,126.12,126.11,0.05173332]
[1742557210269,48.76364908,126.12,126.11,0.05173332]
[1742557211267,36.3327,126.12,126.11,0.05173332]
[1742557215166,7.9327,126.12,126.11,0.05173332]
[1742557215366,36.3327,126.12,126.11,0.05173332]
[1742557218573,0.05464847,126.13,126.11,12.4826824]
[1742557218778,0.05464847,126.13,126.12,7.9327]
[1742557221977,28.4,126.18,126.11,40.8826824]
[1742557222184,28.4,126.18,126.15,12.43094908]
[1742557222477,36.3295,126.18,126.15,20.36134908]
[1742557222876,28.4,126.18,126.15,20.36134908]
[1742557223078,28.45466397,126.18,126.15,12.48720942]
[1742557223282,40.88561305,126.18,126.15,0.05626034]
[1742557223989,12.43094908,126.16,126.09,12.43094908]
[1742557224192,7.934,126.1,126.09,12.43094908]
[1742557224587,28.4,126.13,126.09,12.43094908]
[1742557224790,7.9339,126.11,126.09,12.43094908]
[1742557224985,7.9339,126.11,126.1,0.05052654]
[1742557232287,7.98656921,126.12,126.1,0.05052654]
[1742557232686,7.98656921,126.12,126.1,7.98412654]
[1742557233082,7.9333,126.11,126.1,0.05052654]
[1742557235190,7.98666921,126.12,126.1,0.05052654]
[1742557235597,0.05356921,126.12,126.11,12.43094908]
[1742557236989,7.98626921,126.12,126.11,12.43094908]
[1742557238097,0.05356921,126.12,126.11,12.43094908]
[1742557238400,0.05356921,126.12,126.11,20.36424908]
[1742557241895,0.05356921,126.12,126.11,48.76424908]
[1742557248408,0.05356921,126.12,126.11,48.76424908]
[1742557249406,2.1668,126.17,126.11,48.76424908]
[1742557249407,14.62904908,126.19,126.11,40.83094908]
[1742557249616,30.5781,126.19,126.16,12.43094908]
[1742557250016,7.9292,126.18,126.16,12.43094908]
[1742557250306,30.5781,126.19,126.16,12.43094908]
[1742557250499,0.05470295,126.18,126.16,12.48174029]
[1742557251303,7.98410295,126.18,126.16,20.41184029]
[1742557252109,0.05470295,126.18,126.17,7.9296]
[1742557255115,0.05470295,126.18,126.17,20.36054908]
[1742557258215,30.5953,126.24,126.17,12.43094908]
[1742557258404,30.5953,126.24,126.2,12.43094908]
[1742557258609,7.9271,126.21,126.2,12.43094908]
[1742557259615,7.9277,126.2,126.19,0.05973808]
[1742557260015,45.02574908,126.21,126.15,12.43094908]
[1742557260316,12.43094908,126.19,126.13,302.51094908]
[1742557260513,40.81094908,126.19,126.13,302.51094908]
[1742557261017,40.81094908,126.19,126.13,310.44254908]
[1742557261216,0.05687412,126.17,126.15,0.05116775]
[1742557261418,7.9302,126.16,126.15,0.05116775]
[1742557262615,7.9302,126.16,126.15,12.48211683]
[1742557262821,7.98667412,126.17,126.15,12.48211683]
[1742557263321,0.05687412,126.17,126.16,7.9302]
[1742557263515,0.05687412,126.17,126.16,36.3102]
[1742557266322,2.0957,126.21,126.19,7.9282]
[1742557266528,2.0957,126.21,126.19,20.35914908]
[1742557266715,2.0957,126.21,126.19,12.43094908]
[1742557266911,30.4639,126.22,126.19,12.43094908]
[1742557267116,2.0839,126.22,126.19,12.43094908]
[1742557267323,10.0106,126.22,126.2,7.9274]
[1742557267523,10.06624112,126.22,126.2,7.9274]
[1742557268623,10.06624112,126.22,126.19,40.86323313]
[1742557268624,7.9273,126.21,126.19,48.79123313]
[1742557268827,2.13954112,126.22,126.19,40.86323313]
[1742557269423,7.9275,126.21,126.19,40.86323313]
[1742557269819,7.9275,126.21,126.19,48.79143313]
[1742557271617,7.9275,126.21,126.19,40.86323313]
[1742557272021,7.9277,126.2,126.19,40.86323313]
[1742557272227,40.81094908,126.21,126.16,12.43094908]
[1742557272420,12.43094908,126.19,126.14,40.81094908]
[1742557272728,12.43094908,126.16,126.13,261.7]
[1742557272923,12.43094908,126.15,126.11,28.38]
[1742557273322,7.9316,126.14,126.11,36.3133]
[1742557273528,0.05515179,126.14,126.12,0.05506481]
[1742557274526,0.05515179,126.14,126.12,20.41861389]
[1742557275030,7.98695179,126.14,126.12,12.48601389]
[1742557275222,7.98695179,126.14,126.12,0.05506481]
[1742557275532,7.9321,126.13,126.12,0.05506481]
[1742557276823,10.07345179,126.14,126.12,0.05506481]
[1742557277126,2.14165179,126.14,126.12,0.05506481]
[1742557277326,10.07345179,126.14,126.12,0.05506481]
[1742557278332,7.9321,126.13,126.12,0.05506481]
[1742557280330,10.07345179,126.14,126.12,0.05506481]
[1742557281235,0.05515179,126.14,126.12,0.05506481]
[1742557282327,0.05515179,126.14,126.12,7.98746481]
[1742557282929,7.98665179,126.14,126.12,7.98746481]
[1742557283632,7.98665179,126.14,126.12,0.05506481]
[1742557284331,7.9321,126.13,126.12,0.05506481]
[1742557285528,7.98695179,126.14,126.12,0.05506481]
[1742557286428,7.9321,126.13,126.12,0.05506481]
[1742557288232,0.05515179,126.14,126.08,261.56]
[1742557288425,30.5083,126.13,126.08,289.94]
[1742557288729,30.5083,126.13,126.09,7.9343]
[1742557289232,7.9333,126.12,126.09,7.9343]
[1742557289433,7.9333,126.12,126.1,0.04858588]
[1742557290029,7.9333,126.12,126.1,7.98238588]
[1742557290528,2.1283,126.13,126.11,7.9329]
[1742557290724,0.05515179,126.14,126.11,19.44654721]
[1742557291137,0.05515179,126.14,126.12,7.9323]
[1742557291932,0.05515179,126.14,126.13,7.9321]
[1742557292439,0.05515179,126.14,126.12,7.9324]
[1742557292827,0.05515179,126.14,126.11,19.44654721]
[1742557293028,28.43515179,126.14,126.1,28.42858588]
[1742557293636,7.9331,126.12,126.1,0.04858588]
[1742557293833,28.43515179,126.14,126.1,0.04858588]
[1742557294333,28.43515179,126.14,126.1,7.98248588]
[1742557295135,7.9332,126.12,126.1,20.43121953]
[1742557296139,7.9325,126.13,126.11,7.933]
[1742557296332,7.9325,126.13,126.12,12.44873365]
[1742557296838,7.98685179,126.14,126.12,12.44873365]
[1742557297029,7.98685179,126.14,126.12,20.38133365]
[1742557297230,7.98685179,126.14,126.12,12.44873365]
[1742557297432,0.05515179,126.14,126.12,12.44873365]
[1742557298433,7.9321,126.13,126.12,12.44873365]
[1742557300239,7.98695179,126.14,126.12,20.38113365]
[1742557300832,0.05515179,126.14,126.13,7.9321]
[1742557302940,0.05515179,126.14,126.12,20.38113365]
[1742557304539,0.05515179,126.14,126.13,7.9321]
[1742557305640,2.2133,126.19,126.15,12.44873365]
[1742557305844,12.44873365,126.21,126.1,261.74858588]
[1742557305845,28.38,126.2,126.17,12.44873365]
[1742557306046,4.2787,126.22,126.17,12.44873365]
[1742557306240,32.6587,126.22,126.19,12.44873365]
[1742557306645,32.71102573,126.22,126.19,12.50276309]
[1742557308142,7.9277,126.2,126.19,12.50276309]
[1742557309154,7.9274,126.21,126.19,0.05402944]
[1742557309854,10.19062573,126.22,126.19,0.05402944]
[1742557310246,2.26382573,126.22,126.19,0.05402944]
[1742557310947,7.9272,126.21,126.19,0.05402944]
[1742557311348,7.9277,126.2,126.19,0.05402944]
[1742557311753,2.26382573,126.22,126.19,0.05402944]
[1742557312466,7.9273,126.21,126.19,0.05402944]
[1742557312660,7.9273,126.21,126.19,28.41402944]
[1742557313559,7.97902573,126.22,126.19,47.83955477]
[1742557313760,0.05232573,126.22,126.19,47.83955477]
[1742557313960,7.97902573,126.22,126.19,47.83955477]
[1742557315159,7.9271,126.21,126.19,47.83955477]
[1742557315455,0.05232573,126.22,126.19,47.83955477]
[1742557315856,7.9277,126.2,126.19,47.83955477]
[1742557316059,0.05232573,126.22,126.19,47.83955477]
[1742557316363,7.9273,126.21,126.19,47.83955477]
[1742557316768,0.05232573,126.22,126.19,47.83955477]
[1742557317065,7.9277,126.2,126.19,47.83955477]
[1742557319278,7.9274,126.21,126.19,47.83955477]
[1742557320565,7.97912573,126.22,126.19,47.83955477]
[1742557321171,7.97912573,126.22,126.19,55.76755477]
[1742557321966,7.97912573,126.22,126.2,7.9276]
[1742557322158,7.97912573,126.22,126.21,28.36]
[1742557323863,0.05232573,126.22,126.21,28.36]
[1742557325963,0.05232573,126.22,126.21,55.71262533]
[1742557326368,9.9899,126.27,126.24,7.9248]
[1742557326708,2.1348,126.29,126.25,28.36]
[1742557326791,641.94552533,126.34,126.25,28.36]
[1742557326792,32.5464,126.32,126.25,28.36]
[1742557327069,32.5464,126.32,126.26,19.42552533]
[1742557327573,7.97885409,126.3,126.28,0.05709461]
[1742557327765,0.05735409,126.3,126.28,0.05709461]
[1742557327965,0.05735409,126.3,126.28,55.76521994]
[1742557328572,0.05735409,126.3,126.28,47.84261994]
[1742557328870,0.05735409,126.3,126.29,7.922]
[1742557329573,0.05735409,126.3,126.29,261.46]
[1742557330366,7.9196,126.33,126.29,261.46]
[1742557330367,7.9196,126.33,126.29,269.382]
[1742557330669,7.9196,126.33,126.3,19.42552533]
[1742557331672,7.9202,126.32,126.3,19.42552533]
[1742557331874,0.05443267,126.33,126.3,19.42552533]
[1742557332068,7.97433267,126.33,126.3,19.42552533]
[1742557332475,0.05443267,126.33,126.3,19.42552533]
[1742557333172,7.9202,126.32,126.3,19.42552533]
[1742557335374,7.9202,126.32,126.31,12.4067622]
[1742557337873,7.9202,126.32,126.31,40.7467622]
[1742557339582,7.97423267,126.33,126.31,40.7467622]
[1742557340073,7.97423267,126.33,126.31,40.80147407]
[1742557340675,7.97423267,126.33,126.31,48.72227407]
[1742557341065,7.97423267,126.33,126.31,40.80147407]
[1742557343179,7.97423267,126.33,126.31,48.72217407]
[1742557343377,7.97423267,126.33,126.31,40.80147407]
[1742557345178,7.9202,126.32,126.31,40.80147407]
[1742557346180,7.9202,126.32,126.31,12.46147407]
[1742557349982,7.97433267,126.33,126.31,12.46147407]
[1742557351082,7.97433267,126.33,126.31,20.38217407]
[1742557351884,0.05443267,126.33,126.32,7.9202]
[1742557352084,0.05443267,126.33,126.31,12.46147407]
[1742557352484,0.05443267,126.33,126.31,20.38177407]
[1742557354091,7.97403267,126.33,126.31,20.38177407]
[1742557354389,0.05443267,126.33,126.32,7.9202]
[1742557357287,0.05443267,126.33,126.31,20.38197407]
[1742557358085,0.05443267,126.33,126.32,7.9202]
[1742557358794,0.05443267,126.33,126.31,20.38197407]
[1742557358983,7.97393267,126.33,126.31,20.38197407]
[1742557360689,7.9202,126.32,126.31,12.46147407]
[1742557361392,7.9202,126.32,126.31,0.05471187]
[1742557362093,2.05463267,126.33,126.31,0.05471187]
[1742557362296,2.05463267,126.33,126.32,12.4067622]
[1742557362487,2.05463267,126.33,126.32,20.3269622]
[1742557363196,9.97413267,126.33,126.32,12.4067622]
[1742557365098,9.97413267,126.33,126.32,20.3269622]
[1742557365298,2.05463267,126.33,126.32,20.3269622]
[1742557368701,0.05443267,126.33,126.32,20.3269622]
[1742557371601,0.05443267,126.33,126.32,48.6469622]
[1742557372999,0.05443267,126.33,126.32,40.7267622]
[1742557373999,7.97393267,126.33,126.32,40.7267622]
[1742557374202,7.97393267,126.33,126.32,12.4067622]
[1742557374596,0.05443267,126.33,126.32,12.4067622]
[1742557375199,0.05443267,126.33,126.32,20.3269622]
[1742557380207,7.97393267,126.33,126.32,12.4067622]
[1742557380608,7.9202,126.32,126.31,0.05471187]
[1742557381110,7.97423267,126.33,126.31,0.05471187]
[1742557381301,0.05443267,126.33,126.31,0.05471187]
[1742557382309,7.9202,126.32,126.31,0.05471187]
[1742557383208,7.97433267,126.33,126.31,0.05471187]
[1742557383409,0.05443267,126.33,126.32,12.4067622]
[1742557383808,7.97393267,126.33,126.32,12.4067622]
[1742557384111,0.05443267,126.33,126.32,12.4067622]
[1742557384717,7.97393267,126.33,126.32,12.4067622]
[1742557384912,0.05443267,126.33,126.31,0.05471187]
[1742557385413,7.97433267,126.33,126.31,0.05471187]
[1742557386018,7.97433267,126.33,126.31,7.97531187]
[1742557386216,0.05443267,126.33,126.32,12.4067622]
[1742557386813,0.05443267,126.33,126.32,20.3269622]
[1742557392217,30.3973,126.38,126.32,12.4067622]
[1742557392417,30.3973,126.38,126.35,12.4067622]
[1742557393321,7.9173,126.37,126.35,12.46221526]
[1742557393916,7.9176,126.36,126.35,12.46221526]
[1742557394519,7.9176,126.36,126.35,0.05545306]
[1742557395809,7.9189,126.34,126.33,12.4067622]
[1742557396422,42.8040622,126.38,126.31,40.7267622]
[1742557396624,12.4067622,126.36,126.31,12.4067622]
[1742557396818,30.413,126.35,126.31,12.4067622]
[1742557397018,30.46450845,126.35,126.32,0.06016607]
[1742557397319,7.9195,126.33,126.32,0.06016607]
[1742557402226,0.05150845,126.35,126.32,0.06016607]
[1742557402626,7.9195,126.33,126.32,0.06016607]
[1742557404821,36.2395,126.33,126.32,0.06016607]
[1742557405027,7.9202,126.32,126.31,12.4067622]
[1742557405325,28.32,126.33,126.29,273.8667622]
[1742557406229,0.05018854,126.32,126.3,0.05544398]
[1742557406725,7.9208,126.31,126.3,0.05544398]
[1742557414926,7.9208,126.31,126.3,12.46220618]
[1742557416332,0.05018854,126.32,126.3,12.46220618]
[1742557416742,0.05018854,126.32,126.31,7.9208]
[1742557418419,0.05018854,126.32,126.31,36.2408]
[1742557427127,0.05018854,126.32,126.3,12.46220618]
[1742557427638,7.9208,126.31,126.3,12.46220618]
[1742557427839,7.9208,126.31,126.3,0.05544398]
[1742557428040,28.32,126.31,126.28,12.4067622]
[1742557428237,7.922,126.29,126.28,12.4067622]
[1742557430241,7.9227,126.28,126.27,0.05169826]
[1742557434248,7.9227,126.28,126.27,12.45846046]
[1742557434942,36.27651976,126.29,126.27,12.45846046]
[1742557435247,0.05441976,126.29,126.27,12.45846046]
[1742557435444,7.97691976,126.29,126.27,12.45846046]
[1742557435744,0.05441976,126.29,126.27,12.45846046]
[1742557436145,7.9227,126.28,126.27,12.45846046]
[1742557436346,0.05441976,126.29,126.27,12.45846046]
[1742557436549,7.9227,126.28,126.27,12.45846046]
[1742557437040,28.37441976,126.29,126.27,12.45846046]
[1742557437251,36.29671976,126.29,126.27,12.45846046]
[1742557437440,28.37441976,126.29,126.27,20.38156046]
[1742557437836,0.05441976,126.29,126.28,12.4067622]
[1742557438043,0.05441976,126.29,126.27,20.38156046]
[1742557438543,0.05441976,126.29,126.28,7.9227]
[1742557441151,0.05441976,126.29,126.27,20.38136046]
[1742557441752,0.05441976,126.29,126.28,7.9227]
[1742557443849,0.05441976,126.29,126.27,20.38146046]
[1742557444052,0.05441976,126.29,126.27,12.45846046]
[1742557444452,0.05441976,126.29,126.28,7.9227]
[1742557444950,0.05441976,126.29,126.27,20.38136046]
[1742557445355,0.05441976,126.29,126.27,12.45846046]
[1742557445659,7.9227,126.28,126.27,12.45846046]
[1742557447660,36.29681976,126.29,126.27,12.45846046]
[1742557448758,0.05441976,126.29,126.27,20.38156046]
[1742557449159,0.05441976,126.29,126.28,7.9227]
[1742557450847,0.05441976,126.29,126.27,12.45846046]
[1742557451554,7.97671976,126.29,126.27,12.45846046]
[1742557451962,7.97671976,126.29,126.27,20.38166046]
[1742557452166,0.05441976,126.29,126.27,12.45846046]
[1742557453665,0.05441976,126.29,126.28,7.9227]
[1742557454163,0.05441976,126.29,126.27,20.38136046]
[1742557456174,7.97651976,126.29,126.27,20.38136046]
[1742557458370,0.05441976,126.29,126.27,20.38136046]
[1742557458560,0.05441976,126.29,126.28,7.9227]
[1742557459368,0.05441976,126.29,126.27,20.38136046]
[1742557460072,0.05441976,126.29,126.28,7.9227]
[1742557470673,0.05441976,126.29,126.28,36.2227]
[1742557470877,32.5122,126.34,126.3,12.4067622]
[1742557471376,7.9199,126.33,126.31,7.9208]
[1742557471883,7.97993521,126.33,126.31,7.97531715]
[1742557474177,0.06003521,126.33,126.32,20.3269622]
[1742557474578,0.06003521,126.33,126.32,12.4067622]
[1742557474878,7.97953521,126.33,126.32,12.4067622]
[1742557479988,0.06003521,126.33,126.32,20.3269622]
[1742557482291,0.06003521,126.33,126.32,12.4067622]
[1742557483494,0.06003521,126.33,126.32,20.3269622]
[1742557483794,0.06003521,126.33,126.32,12.4067622]
[1742557483992,7.97953521,126.33,126.31,7.97491715]
[1742557484188,7.97953521,126.33,126.31,0.05451715]
[1742557485798,7.9202,126.32,126.31,0.05451715]
[1742557486295,0.06003521,126.33,126.31,0.05451715]
[1742557486797,7.98003521,126.33,126.31,0.05451715]
[1742557487397,7.9202,126.32,126.31,0.05451715]
[1742557488790,7.97993521,126.33,126.31,0.05451715]
[1742557489397,7.9202,126.32,126.31,0.05451715]
[1742557500200,7.97993521,126.33,126.31,0.05451715]
[1742557500402,7.97993521,126.33,126.32,12.4067622]
[1742557505215,0.06003521,126.33,126.32,20.3269622]
[1742557508310,0.06003521,126.33,126.32,12.4067622]
[1742557508804,0.06003521,126.33,126.31,0.05451715]
[1742557509008,7.9202,126.32,126.31,0.05451715]
[1742557512609,7.97993521,126.33,126.31,0.05451715]
[1742557513310,7.97993521,126.33,126.31,100.05451715]
[1742557513511,7.9202,126.32,126.31,100.05451715]
[1742557517912,7.97993521,126.33,126.31,107.97531715]
[1742557518812,7.97993521,126.33,126.32,12.4067622]
[1742557522212,0.06003521,126.33,126.32,12.4067622]
[1742557522417,0.06003521,126.33,126.32,20.3269622]
[1742557529024,0.06003521,126.33,126.32,120.3269622]
[1742557532733,10.1148,126.37,126.32,112.4067622]
[1742557532933,10.1148,126.37,126.36,12.4067622]
[1742557533327,7.9168,126.38,126.36,12.4067622]
[1742557533934,7.97007489,126.38,126.36,12.46119476]
[1742557534135,0.05327489,126.38,126.37,12.4067622]
[1742557534838,0.05327489,126.38,126.37,20.3237622]
[1742557536925,10.1208,126.41,126.38,7.9163]
[1742557537130,10.1208,126.41,126.4,12.4067622]
[1742557537931,10.1208,126.41,126.37,28.28]
[1742557537932,7.9153,126.4,126.39,12.4067622]
[1742557538139,7.9153,126.4,126.39,12.46008573]
[1742557541447,7.9146,126.41,126.39,20.37588573]
[1742557541637,7.9146,126.41,126.4,12.4067622]
[1742557542443,7.96746642,126.42,126.4,12.4067622]
[1742557542637,7.96746642,126.42,126.41,12.4067622]
[1742557543843,0.05326642,126.42,126.41,12.4067622]
[1742557545442,0.05326642,126.42,126.41,112.4067622]
[1742557545859,0.05326642,126.42,126.41,120.3212622]
[1742557552755,7.96716642,126.42,126.41,112.4067622]
[1742557553053,7.96716642,126.42,126.41,100.0]
[1742557555762,0.05326642,126.42,126.41,112.4067622]
[1742557556453,0.05326642,126.42,126.41,120.3212622]
[1742557558457,0.05326642,126.42,126.41,148.5812622]
[1742557559856,0.05326642,126.42,126.41,140.6667622]
[1742557560156,0.05326642,126.42,126.41,112.4067622]
[1742557560358,7.96716642,126.42,126.41,112.4067622]
[1742557560963,0.05326642,126.42,126.41,112.4067622]
[1742557561160,0.05326642,126.42,126.41,120.3212622]
[1742557561661,0.05326642,126.42,126.41,112.4067622]
[1742557563054,7.96716642,126.42,126.41,112.4067622]
[1742557566164,0.05326642,126.42,126.41,120.3212622]
[1742557568164,7.96716642,126.42,126.41,120.3212622]
[1742557569367,0.05326642,126.42,126.41,120.3212622]
[1742557570160,650.4035622,126.51,126.41,140.6467622]
[1742557570366,34.5007,126.5,126.46,12.4067622]
[1742557570668,7.9108,126.47,126.46,12.4067622]
[1742557571165,7.9108,126.47,126.45,20.37626252]
[1742557571464,7.9108,126.47,126.45,12.46426252]
[1742557572264,28.29273796,126.48,126.45,12.46426252]
[1742557572471,28.29273796,126.48,126.45,0.05750032]
[1742557572673,12.4067622,126.47,126.42,12.4067622]
[1742557572874,28.24,126.46,126.43,12.4067622]
[1742557573072,28.24,126.48,126.45,12.4067622]
[1742557573378,7.9112,126.47,126.46,12.4067622]
[1742557575977,36.20784462,126.48,126.46,12.4067622]
[1742557576176,28.29734462,126.48,126.46,12.4067622]
[1742557576781,0.05734462,126.48,126.46,20.3179622]
[1742557577276,7.96774462,126.48,126.46,20.3179622]
[1742557577585,7.96774462,126.48,126.47,12.4067622]
[1742557577780,0.05734462,126.48,126.47,20.3175622]
[1742557579287,0.05734462,126.48,126.47,48.5575622]
[1742557579470,0.53064629,126.52,126.5,7.9086]
[1742557579776,0.53064629,126.52,126.51,12.4067622]
[1742557580570,8.43824629,126.52,126.51,12.4067622]
[1742557581379,7.9083,126.51,126.5,0.05418797]
[1742557581678,41.17740849,126.52,126.47,12.4067622]
[1742557581881,7.9101,126.48,126.47,12.4067622]
[1742557582389,7.9098,126.49,126.47,12.4067622]